[Event "Charlotte Spring IM-C 2023"]
[Site "Charlotte"]
[Date "2023.03.18"]
[Round "6.5"]
[White "Vanapalli, Vishnu"]
[Black "Chiku-Ratte, Olivier-Kenta"]
[Result "1-0"]
[ECO "C55"]
[WhiteElo "2226"]
[BlackElo "2301"]
[Annotator "TA"]
[PlyCount "157"]
[EventDate "2023.03.14"]
[EventType "tourn"]
[EventCountry "USA"]
[SourceTitle "playchess.com"]
[Source "ChessBase"]
[SourceQuality "1"]
[TimeControl "5400+30"]

{[%evp 18,157,27,39,54,37,65,46,72,44,63,54,71,31,52,53,81,50,93,95,100,95,216,81,85,81,62,45,67,56,68,60,58,67,53,56,70,68,111,115,134,128,139,133,238,127,150,100,104,62,76,68,169,9,9,0,0,0,0,-195,7,0,0,-13,-12,-10,0,0,0,0,0,-14,0,0,0,0,0,0,15,18,13,29,26,0,254,263,244,261,273,269,339,273,1459,1287,12840,12840,12841,12839,12839,12828,12828,10860,4998,1851,1567,1222,1822,562,12850,12849,12850,12850,12850,27999,27999,27999,27999,27999,27999,27999,27999,27999,27999,27999,27999,27999,27999,27999,27999,27999,27999,27999,27999,27999,27999,27999,27999,27999,27999,27999,27999,27999]} 1. e4 {[%emt 0:00:57]} e5 {[%emt 0:00:18]} 2. Nf3 {[%emt 0:00:11]} Nc6 {[%emt 1:31:12]} 3. Bc4 {[%emt 0:02:19]} Nf6 {[%emt 0:00:00]} 4. d3 {[%emt 0:00:12][%cal Bd2d3,Bd3d4][%mdl 32]} h6 {[%emt 0:00:00]} 5. O-O {[%emt 0:00:15]} d6 {[%emt 0:00:00]} 6. c3 {[%emt 0:01:04]} g6 {[%emt 0:00:00]} 7. d4 {[%emt 0:01:39]} Qe7 {[%emt 0:00:00]} 8. Re1 {[%emt 0:03:13]} Bg7 {[%emt 0:00:00]} 9. Nbd2 {[%emt 0:01:53]} O-O {[%emt 0:00:00]} 10. h3 {[%emt 0:00:17]} a6 {[%emt 0:00:00] 10...Kh8 is setting a new trend. C55: Two Knights: 4 d3, 4 d4 exd4 5 e5 and Max Lange Attack.} 11. a4 {[%emt 0:09:53] [#]} exd4 $146 {[%emt 0:00:00]} ({Predecessor:} 11... Nh5 12. Nf1 Kh7 13. Ne3 Bd7 14. Nd5 Qd8 15. Be3 Ne7 16. dxe5 Nxd5 17. Bxd5 c6 18. Bb3 dxe5 {0-1 Lamard,G (2486)-Jenni,F (2456) Titled Tuesday intern op 7th April blitz 2020 (6)}) 12. cxd4 {[%emt 0:00:31]} Nd7 {[%emt 0:00:00] White is slightly better.} 13. Nf1 {[%emt 0:03:50]} Nb6 {[%emt 0:00:00]} 14. Bb3 {[%emt 0:05:47]} a5 {[%emt 0:00:00]} 15. Be3 {[%emt 0:08:10]} Qd8 {[%emt 0:00:00]} 16. Ng3 {[%emt 0:03:17]} d5 {[%emt 0:00:00]} 17. e5 {[%emt 0:08:17]} Nc4 {[%emt 0:00:00]} 18. Bxc4 {[%emt 0:04:45]} dxc4 {[%emt 0:00:00]} 19. Qc1 {[%emt 0:01:11]} Nb4 {[%emt 0:00:00]} (19... Kh7 $16 {is a better defense.}) 20. Qxc4 {[%emt 0:04:38]} (20. Bxh6 $18 {Bg5 is the strong threat.} Nd3 21. Qe3 (21. Qxc4 $2 Nxe1 22. Rxe1 Bxh6 $19)) 20... Be6 $16 {[%emt 0:00:00]} 21. Qe2 {[%emt 0:00:24] White is more active.} Bd5 {[%emt 0:00:00]} 22. Rec1 {[%emt 0:03:47]} Qd7 {[%emt 0:00:00]} 23. Nd2 {[%emt 0:01:44]} f5 {[%emt 0:00:00]} 24. exf6 {[%emt 0:02:32]} Rxf6 {[%emt 0:00:00]} 25. Nc4 $1 {[%emt 0:02:45]} Nc6 {[%emt 0:11:30]} 26. Ne5 {[%emt 0:03:08] Prevents Rf7} Nxe5 {[%emt 0:00:30]} 27. dxe5 {[%emt 0:01:15]} Rc6 {[%emt 0:00:00]} 28. f4 {[%emt 0:02:19]} Rxc1+ {[%emt 0:00:00]} 29. Rxc1 {[%emt 0:00:42]} ({But not} 29. Bxc1 Rd8 $16) 29... Bc6 {[%emt 0:00:00]} 30. Qc2 {[%emt 0:09:00]} Qe6 {[%emt 0:00:00] [#]} (30... Qd5 $16 31. Rd1 (31. Qxg6 $2 Qxg2#) 31... Qf7) 31. Rd1 {[%emt 0:00:39]} (31. Ne2 $1 $18 {[%cal Re2d4]}) 31... Rf8 {[%emt 0:00:00]} 32. Ne2 {[%emt 0:02:56]} (32. Rd4 $142) 32... Qf7 {[%emt 0:00:00]} 33. Nc3 {[%emt 0:01:57]} g5 $1 {[%emt 0:00:00][%mdl 64] Deflection} 34. fxg5 {[%emt 0:01:06]} hxg5 {[%emt 0:00:00] [#]} (34... Bxe5 $14 35. gxh6 Kh8) 35. Bxg5 $2 {[%emt 0:04:06]} ({Stronger than} 35. Bc5 Qf5 36. Qb3+ Rf7 $11) ({White has to play} 35. Ne4 $1 $18 {[%cal Re4g5]} Qg6 36. Qc4+ Kh8 37. Nxg5 Bxe5 38. b3) 35... Bxe5 $11 {[%emt 0:00:00]} 36. Qe2 {[%emt 0:03:58]} Qf5 {[%emt 0:00:00]} 37. Be3 {[%emt 0:00:31]} Qg6 {[%emt 0:00:00]} 38. Bd4 $2 {[%emt 0:02:56]} (38. Rf1 $11) 38... Bd6 $2 {[%emt 0:00:00] This pair of bishops is nice.} (38... Bf3 $19 39. Qf1 Bxd1 40. Qxd1 Bd6) 39. Rd3 {[%emt 0:00:56]} Bf4 {[%emt 0:00:00]} 40. Qg4 {[%emt 0:00:58]} Qxg4 {[%emt 0:00:00]} 41. hxg4 {[%emt 0:00:02]} Kh7 {[%emt 0:00:00]} 42. Ne2 {[%emt 0:00:47]} Bd6 {[%emt 0:00:31]} 43. b3 {[%emt 0:00:21]} Kg6 {[%emt 0:07:59]} 44. Re3 {[%emt 0:00:22]} Kg5 {[%emt 0:00:00][%mdl 1024] Black has compensation.} 45. Be5 {[%emt 0:00:07]} Bc5 {[%emt 0:00:00]} 46. Bd4 {[%emt 0:00:05]} Bd6 {[%emt 0:00:00] Against Re5+} 47. Be5 {[%emt 0:00:07]} Bb4 {[%emt 0:00:02]} 48. Nd4 {[%emt 0:00:08] aiming for Ne6+.} Bd5 {[%emt 0:01:19] Wards off Ne6+} 49. Bxc7 {[%emt 0:00:44] Threatens to win with Re5+.} Kxg4 {[%emt 0:00:07]} 50. Re5 {[%emt 0:01:01]} (50. Rg3+ {simplifies} Kh5 51. Ne2 Bc5+ 52. Kh1) 50... Rc8 $2 {[%emt 0:01:08][%mdl 8192] White leaves nothing to chance now.} (50... Bd2 $11 {and Black stays safe.}) 51. Bxa5 $18 {[%emt 0:01:20]} Bxa5 {[%emt 0:00:38]} 52. Rxd5 {[%emt 0:00:06][%mdl 4096] Endgame KRB-KRN} Bb6 {[%emt 0:00:21]} 53. Kf1 {[%emt 0:00:30]} Rc3 {[%emt 0:00:24]} 54. Ke2 {[%emt 0:00:55] Prevents Rd3.} Rg3 $2 {[%emt 0:00:09]} (54... Rc7 55. Kd3 Kg3 56. Rg5+ Kf2) 55. Rd6 {[%emt 0:00:40] Strongly threatening Rg6+.} Rxg2+ {[%emt 0:00:44]} 56. Kf1 {[%emt 0:00:32]} Rd2 {[%emt 0:00:12]} 57. Rg6+ {[%emt 0:00:34]} Kf4 {[%emt 0:00:28]} 58. Ne2+ {[%emt 0:00:17]} Ke3 {[%emt 0:01:04]} 59. Re6+ {[%emt 0:00:05]} Kf3 {[%emt 0:00:06]} 60. Rf6+ {[%emt 0:00:03]} (60. Rxb6 $2 Rd1#) 60... Ke3 {[%emt 0:00:05]} 61. Rxb6 {[%emt 0:00:04] KRN-KR} Rd1+ {[%emt 0:01:26]} 62. Kg2 {[%emt 0:00:04] Black must now prevent Re6+.} Kxe2 {[%emt 0:01:17] KR-KR} 63. Re6+ {[%emt 0:01:10]} Kd3 {[%emt 0:00:00]} 64. Rd6+ {[%emt 0:00:16]} Kc2 {[%emt 0:00:00]} 65. Rxd1 {[%emt 0:00:18]} Kxd1 {[%emt 0:00:41] KPP-KP. White mates.} 66. b4 {[%emt 0:00:21]} Kc2 {[%emt 0:00:47]} 67. a5 {[%emt 0:00:13]} Kb3 {[%emt 0:00:25]} 68. b5 {[%emt 0:00:05]} Kb4 {[%emt 0:00:24]} 69. a6 {[%emt 0:00:04]} b6 {[%emt 0:00:04]} 70. a7 {[%emt 0:00:05]} Kxb5 {[%emt 0:00:15]} 71. a8=Q {[%emt 0:00:07]} ({Not} 71. a8=B Kc5 $11) 71... Kb4 {[%emt 0:00:04]} 72. Qe4+ {[%emt 0:00:10]} Ka5 {[%emt 0:00:10]} 73. Kf3 {[%emt 0:00:07]} b5 {[%emt 0:00:07]} 74. Ke2 {[%emt 0:00:05]} b4 {[%emt 0:00:05]} 75. Qc2 {[%emt 0:00:12]} Kb5 {[%emt 0:00:05]} 76. Qb3 {[%emt 0:00:05]} Kc5 {[%emt 0:03:53]} 77. Kd3 {[%emt 0:00:05]} Kb5 {[%emt 0:00:00]} 78. Kd4 {[%emt 0:00:05]} Ka5 {[%emt 0:00:00]} 79. Kc5 {[%emt 0:00:12] Weighted Error Value: White=0.25 (precise) /Black=0.32} 1-0

[Event "Charlotte Spring IM-C 2023"]
[Site "Charlotte"]
[Date "2023.03.19"]
[Round "7.1"]
[White "Chiku-Ratte, Olivier-Kenta"]
[Black "Adamson, Robby"]
[Result "1-0"]
[ECO "E11"]
[WhiteElo "2301"]
[BlackElo "2265"]
[Annotator "TA"]
[PlyCount "109"]
[EventDate "2023.03.14"]
[EventType "tourn"]
[EventCountry "USA"]
[SourceTitle "playchess.com"]
[Source "ChessBase"]
[SourceQuality "1"]
[TimeControl "5400+30"]

{[%evp 16,109,10,0,0,0,6,6,6,-7,-16,-17,0,-14,0,0,0,-12,0,-10,-2,-39,-29,-44,0,0,0,-20,-20,-17,-12,-19,-20,-23,-23,-27,17,17,15,0,28,12,12,0,7,0,0,0,20,0,0,-8,21,0,15,0,4,0,8,8,52,61,84,72,500,500,642,487,489,465,494,493,492,442,454,418,427,422,426,400,412,408,381,384,608,652,634,593,537,516,670,526,771,705,720,714]} 1. Nf3 {[%emt 0:05:56]} d5 {[%emt 0:00:06]} 2. d4 {[%emt 0:00:16]} Nf6 {[%emt 0:00:08]} 3. c4 {[%emt 0:00:05]} e6 {[%emt 0:00:19]} 4. g3 {[%emt 0:00:03]} Bb4+ {[%emt 0:00:07]} 5. Bd2 {[%emt 0:00:18]} Be7 {[%emt 0:00:15]} 6. Qc2 {[%emt 0:00:09]} O-O {[%emt 0:00:28]} 7. Bg2 {[%emt 0:00:02]} c6 {[%emt 0:00:07]} 8. O-O {[%emt 0:00:05]} Nbd7 {[%emt 0:00:03]} 9. Bf4 {[%emt 0:00:14]} b6 {[%emt 0:00:11] E11: Bogo-Indian.} 10. Nbd2 {[%emt 0:03:00]} Nh5 {[%emt 0:03:33]} 11. cxd5 {[%emt 0:01:19] Recently 11.e3 got a lot of attention.} Nxf4 {[%emt 0:01:22] The position is equal.} 12. gxf4 {[%emt 0:00:05] [#] Threatens to win with dxe6.} cxd5 {[%emt 0:00:25]} 13. Rfc1 {[%emt 0:00:19]} Ba6 {[%emt 0:12:03]} 14. e3 {[%emt 0:00:17]} Rc8 {[%emt 0:10:09]} 15. Qa4 {[%emt 0:00:27]} Nb8 {[%emt 0:00:00]} 16. Bf1 {[%emt 0:03:13]} Bxf1 {[%emt 0:03:04]} 17. Kxf1 {[%emt 0:00:15] [#]} Qd7 $146 {[%emt 0:00:10]} ({Predecessor:} 17... a6 18. Rxc8 Qxc8 19. Ne5 a5 20. Qd1 Qa6+ 21. Qe2 Rc8 22. Qxa6 Nxa6 23. Nd3 Nb4 {½-½ Saraci,N (2487)-Borhy,M (2403) Pristina Nderkombetar op 2022 (7)}) 18. Qb3 {[%emt 0:01:17]} Nc6 {[%emt 0:01:58]} 19. Qb5 {[%emt 0:01:32]} Nb8 {[%emt 0:08:03]} 20. Qxd7 {[%emt 0:05:07]} Nxd7 {[%emt 0:02:02]} 21. Ne5 {[%emt 0:00:14]} Nb8 {[%emt 0:04:15]} 22. Ke2 {[%emt 0:02:00]} f6 {[%emt 0:00:24]} 23. Nd3 {[%emt 0:00:18]} Bd6 {[%emt 0:07:58]} 24. h3 {[%emt 0:01:01]} Kf7 {[%emt 0:00:39]} 25. a4 {[%emt 0:02:16]} Rxc1 {[%emt 0:02:04]} 26. Rxc1 {[%emt 0:00:45]} Na6 {[%emt 0:06:02]} 27. a5 {[%emt 0:06:04]} Ke7 {[%emt 0:01:56]} (27... bxa5 $5 {[%cal Rf8b8]} 28. Ra1 (28. Rc6 Nb8 $11) 28... Bc7 $11) 28. axb6 {[%emt 0:02:46]} axb6 {[%emt 0:00:08]} 29. f3 {[%emt 0:00:23]} Kd7 {[%emt 0:01:55]} 30. Rg1 {[%emt 0:02:05]} Rf7 {[%emt 0:00:25]} 31. h4 {[%emt 0:02:13][%cal Bh3h4,Bh4h5,Bh5h6][%mdl 32]} Nb8 {[%emt 0:05:20]} 32. e4 {[%emt 0:03:38]} Nc6 {[%emt 0:00:52]} 33. Ke3 {[%emt 0:00:36]} Ne7 {[%emt 0:08:06]} 34. h5 {[%emt 0:03:24]} Bc7 {[%emt 0:02:33]} 35. Nf1 {[%emt 0:03:57]} Bd6 {[%emt 0:02:48]} 36. Nh2 {[%emt 0:01:06]} Nc6 {[%emt 0:02:28]} 37. Ng4 {[%emt 0:00:56]} Bc7 {[%emt 0:02:01]} 38. h6 {[%emt 0:06:01] [#] And now hxg7 would win.} g6 {[%emt 0:00:23]} 39. Rc1 {[%emt 0:01:15] Hoping for e5.} Bd6 {[%emt 0:05:28][%mdl 8192] This costs Black the game.} (39... dxe4 $16 {is tougher.} 40. fxe4 Ne7) 40. e5 $18 {[%emt 0:02:23]} Ne7 {[%emt 0:05:40]} 41. exd6 {[%emt 0:16:08]} Nf5+ {[%emt 0:00:23]} 42. Kf2 {[%emt 0:00:10]} Kxd6 {[%emt 0:00:03]} 43. Rc8 {[%emt 0:02:22]} Nxd4 {[%emt 0:00:33]} 44. Rd8+ {[%emt 0:01:08]} Kc7 {[%emt 0:00:30]} 45. Ra8 {[%emt 0:03:13] aiming for Ra7+.} Kb7 {[%emt 0:00:51] Prevents Ra7+.} 46. Re8 {[%emt 0:01:59]} Kc7 {[%emt 0:00:26]} 47. Ne3 {[%emt 0:04:32]} Kd7 {[%emt 0:01:01]} 48. Rg8 {[%emt 0:00:54]} Nc6 {[%emt 0:00:27]} 49. Ng4 {[%emt 0:01:50]} Ke7 {[%emt 0:02:50]} (49... Kd6 $142 50. b4 Ne7 51. Rd8+ Kc7) 50. Rc8 {[%emt 0:00:39] White is clearly winning.} Nd4 {[%emt 0:01:44]} 51. Rb8 {[%emt 0:00:41]} b5 {[%emt 0:00:21]} 52. Rb6 {[%emt 0:01:24]} Kd7 {[%emt 0:00:46]} 53. Ra6 {[%emt 0:00:46]} Kc8 {[%emt 0:00:32]} 54. b4 {[%emt 0:00:44]} Kb8 {[%emt 0:00:23]} 55. Nc5 {[%emt 0:00:14] Weighted Error Value: White=0.11 (very precise) /Black=0.39} 1-0

[Event "Charlotte Spring IM-C 2023"]
[Site "Charlotte"]
[Date "2023.03.19"]
[Round "7.2"]
[White "Georgiev, Vladimir"]
[Black "Vanapalli, Vishnu"]
[Result "1/2-1/2"]
[ECO "D37"]
[WhiteElo "2404"]
[BlackElo "2226"]
[Annotator "TA"]
[PlyCount "169"]
[EventDate "2023.03.14"]
[EventType "tourn"]
[EventCountry "USA"]
[SourceTitle "playchess.com"]
[Source "ChessBase"]
[SourceQuality "1"]
[TimeControl "5400+30"]

{[%evp 16,169,16,20,82,15,28,21,20,31,39,17,41,18,38,35,81,58,67,53,51,0,44,37,55,58,59,64,239,137,137,131,336,64,230,240,225,223,240,99,110,93,93,35,46,46,68,32,39,35,72,81,101,79,86,86,86,85,101,86,109,87,101,89,101,72,101,87,101,86,121,120,120,86,101,101,101,101,101,101,101,101,101,101,101,101,101,101,101,101,101,101,101,101,101,101,101,101,101,101,101,101,101,101,101,101,101,101,101,101,101,0,101,0,101,101,101,101,101,101,101,101,101,101,101,101,101,101,101,101,101,101,101,0,0,0,0,0,0,0,0,0,0,0,0,0,11,0,0,0,0,0,0,0,0,0]} 1. d4 {[%emt 0:00:03]} d5 {[%emt 0:00:12]} 2. c4 {[%emt 0:00:13]} e6 {[%emt 0:00:09]} 3. Nc3 {[%emt 0:00:08]} Be7 {[%emt 0:00:07]} 4. Bf4 {[%emt 0:00:18]} Nf6 {[%emt 0:00:20]} 5. e3 {[%emt 0:00:26]} O-O {[%emt 0:00:36]} 6. Nf3 {[%emt 0:00:16]} b6 {[%emt 0:04:28]} 7. cxd5 {[%emt 0:00:39]} Nxd5 {[%emt 0:00:50]} 8. Nxd5 {[%emt 0:00:07]} exd5 {[%emt 0:01:35]} 9. Bd3 {[%emt 0:01:07]} Bb7 {[%emt 0:00:45] D37: Queen's Gambit Declined: 5 Bf4.} (9... c5 $11 {remains equal.}) 10. O-O {[%emt 0:00:24]} ({White should try} 10. Qc2 $16) 10... c5 $11 {[%emt 0:00:33]} 11. b3 {[%emt 0:00:06]} Nd7 {[%emt 0:01:32]} 12. Rc1 {[%emt 0:00:29]} a6 {[%emt 0:12:30]} 13. Qe2 {[%emt 0:02:26] [#]} Nf6 $146 {[%emt 0:05:46]} ({Predecessor:} 13... b5 14. dxc5 Nxc5 15. Bb1 Rc8 16. Rfd1 Qb6 17. Ne5 Qe6 18. Nf3 Rfe8 {1-0 Obiedzinski,P (2024)-Tomczyk,R POL-chT Mazovia 06/07 op 2006 (5.26)}) 14. h3 {[%emt 0:04:31]} Qd7 {[%emt 0:06:13]} 15. Rfd1 {[%emt 0:00:33]} h6 {[%emt 0:00:48]} (15... Qe6 $14 {is more appropriate.}) 16. Qc2 {[%emt 0:03:03]} Rfd8 {[%emt 0:20:03]} 17. Ne5 {[%emt 0:06:04]} Qe8 {[%emt 0:00:22]} 18. Nf3 {[%emt 0:00:10]} ({Better is} 18. Qe2 $14) 18... cxd4 {[%emt 0:04:54]} 19. Nxd4 {[%emt 0:01:03] Qc7 is the strong threat.} (19. Qc7 $5 {[%cal Rc7b7]} Rd7 20. Qxb6 dxe3 21. Qxe3 $14 (21. Bxe3 d4 $11)) 19... Ba3 {[%emt 0:00:33]} 20. Rb1 $36 {[%emt 0:02:05][%mdl 2048] White has some pressure.} Rac8 {[%emt 0:01:48] Repels b4} 21. Qe2 {[%emt 0:01:33] Threatens to win with b4.} Ne4 $2 {[%emt 0:01:24]} (21... Be7 $14) 22. Qg4 {[%emt 0:04:01]} ({And not} 22. Bxa6 Nc3 23. Qf1 Bxa6 24. Qxa6 Bc5 $17) ({Only move:} 22. b4 $1 $18) 22... Nf6 {[%emt 0:07:29]} 23. Qh4 {[%emt 0:04:11] Strongly threatening b4. White is much more active.} Ne4 $2 {[%emt 0:02:56] [#]} (23... Bf8 $16) 24. Bxe4 $2 {[%emt 0:12:51]} (24. b4 $1 $18) 24... Qxe4 $2 {[%emt 0:04:09] [#]} (24... dxe4 $14 25. Qg4 Bf8) 25. b4 $1 $18 {[%emt 0:01:57] aiming for f3.} Re8 {[%emt 0:05:00]} 26. Qg4 {[%emt 0:02:30] Hoping for Nf5.} Qg6 {[%emt 0:03:05]} 27. Qd7 {[%emt 0:03:21]} (27. Qxg6 $18 fxg6 28. Rb3) 27... Bc6 $16 {[%emt 0:00:23]} 28. Nxc6 {[%emt 0:00:24]} Qxc6 {[%emt 0:00:05]} 29. Qxd5 {[%emt 0:01:58]} (29. Qxc6 $16 Rxc6 30. Rd3 (30. Rxd5 Rc2 $14)) 29... Qxd5 $14 {[%emt 0:01:38]} 30. Rxd5 {[%emt 0:00:03]} Rc4 {[%emt 0:00:16]} 31. Rd4 {[%emt 0:04:28]} Rc2 {[%emt 0:05:32]} 32. Rd6 {[%emt 0:03:19]} a5 {[%emt 0:01:22]} 33. Rxb6 {[%emt 0:00:16] And now b5 would win.} axb4 {[%emt 0:02:32]} 34. Bd6 {[%emt 0:00:20]} Rxa2 {[%emt 0:00:58]} 35. Bxb4 {[%emt 0:00:06]} Bxb4 {[%emt 0:00:08]} 36. R1xb4 $16 {[%emt 0:00:07][%mdl 4096] Endgame KRR-KRR} Ra7 {[%emt 0:00:46]} 37. g4 {[%emt 0:00:51]} g6 {[%emt 0:00:47]} 38. Kg2 {[%emt 0:00:10]} Kg7 {[%emt 0:00:09]} 39. Kg3 {[%emt 0:00:06]} Re5 {[%emt 0:00:39]} 40. Rb8 {[%emt 0:00:30]} Rea5 {[%emt 0:01:08]} 41. h4 {[%emt 0:00:39]} Ra1 {[%emt 0:01:49]} 42. Rc8 {[%emt 0:03:44]} Ra8 {[%emt 0:00:37]} 43. Rxa8 {[%emt 0:00:13]} Rxa8 {[%emt 0:00:02] KR-KR} 44. g5 {[%emt 0:00:11]} hxg5 {[%emt 0:00:18]} 45. hxg5 {[%emt 0:00:04]} Ra7 {[%emt 0:01:01]} 46. Rb6 {[%emt 0:00:07]} Rc7 {[%emt 0:00:13]} 47. f4 {[%emt 0:00:12]} Ra7 {[%emt 0:00:16]} 48. Kf3 {[%emt 0:00:12]} Re7 {[%emt 0:00:07]} 49. Ra6 {[%emt 0:00:04]} Rb7 {[%emt 0:00:30]} 50. Ra3 {[%emt 0:00:32]} Re7 {[%emt 0:00:17]} 51. Rc3 {[%emt 0:00:21]} Kg8 {[%emt 0:01:13]} 52. Rc8+ {[%emt 0:00:32]} Kg7 {[%emt 0:00:04]} 53. Rd8 {[%emt 0:00:05]} Ra7 {[%emt 0:00:26]} 54. Ke4 {[%emt 0:00:09]} Ra4+ {[%emt 0:01:42]} 55. Ke5 {[%emt 0:00:49]} Ra5+ {[%emt 0:00:29]} 56. Rd5 {[%emt 0:00:21]} Ra8 {[%emt 0:01:01]} 57. Rd7 {[%emt 0:01:01]} Ra5+ {[%emt 0:00:26]} 58. Kd6 {[%emt 0:00:56]} Ra6+ {[%emt 0:00:30]} 59. Kc5 {[%emt 0:00:27]} Ra5+ {[%emt 0:01:29]} 60. Kb4 {[%emt 0:00:28]} Ra1 {[%emt 0:00:04]} 61. Kc3 {[%emt 0:00:38]} Ra3+ {[%emt 0:00:05]} 62. Kd4 {[%emt 0:00:10]} Ra4+ {[%emt 0:00:06]} 63. Ke5 {[%emt 0:00:09]} Ra5+ {[%emt 0:00:28]} 64. Rd5 {[%emt 0:00:11]} Ra8 {[%emt 0:00:04]} 65. e4 {[%emt 0:00:07]} Ra4 {[%emt 0:00:56]} 66. Rb5 {[%emt 0:00:19]} Ra6 {[%emt 0:00:16]} 67. Kd5 {[%emt 0:00:41]} Ra4 {[%emt 0:00:20]} 68. Rc5 {[%emt 0:01:34]} Ra1 {[%emt 0:00:42]} 69. Ke5 {[%emt 0:00:35]} Re1 {[%emt 0:00:11]} 70. Rc7 {[%emt 0:00:21]} Rf1 {[%emt 0:02:35]} 71. Rc8 {[%emt 0:03:52]} Re1 {[%emt 0:00:37]} 72. Rd8 {[%emt 0:00:08]} Re2 {[%emt 0:00:49]} 73. Rd4 {[%emt 0:00:22]} Rf2 {[%emt 0:00:45]} 74. f5 {[%emt 0:00:28]} (74. Ra4 $16) 74... gxf5 $11 {[%emt 0:00:15] The position is equal.} 75. exf5 {[%emt 0:00:05]} Rg2 {[%emt 0:00:42]} 76. Kf4 {[%emt 0:00:12]} Rf2+ {[%emt 0:00:43]} 77. Kg4 {[%emt 0:00:07]} Rg2+ {[%emt 0:00:26]} 78. Kh4 {[%emt 0:00:16]} Rh2+ {[%emt 0:00:27]} 79. Kg3 {[%emt 0:00:07]} Rh5 {[%emt 0:00:13]} 80. Kg4 {[%emt 0:03:49]} Rh1 {[%emt 0:00:05]} 81. Rd3 {[%emt 0:00:05]} Rg1+ {[%emt 0:00:27]} 82. Rg3 {[%emt 0:00:11]} Ra1 {[%emt 0:00:28]} 83. Rh3 {[%emt 0:00:14]} Rg1+ {[%emt 0:00:46]} 84. Kh5 {[%emt 0:00:16]} f6 {[%emt 0:00:33]} 85. gxf6+ {[%emt 0:00:17] Black escapes into a draw.   Weighted Error Value: White=0.26 (precise) /Black=0.25 (precise)} 1/2-1/2